bitfinex/quotes_ETHUSD_20260125
["timestamp","ask_amount","ask_price","bid_price","bid_amount"]
[1769347825565,0.001,2937.2,2936.7,0.20190644]
[1769347825738,0.001,2937.2,2936.4,2.02106442]
[1769347830765,0.001,2937.2,2936.6,0.002]
[1769347831361,2.03845199,2937.2,2936.6,0.002]
[1769347831659,2.07246573,2937.2,2936.6,0.002]
[1769347833467,0.03501374,2937.2,2936.6,0.002]
[1769347833656,0.001,2937.2,2936.7,2.37083579]
[1769347833850,0.03501374,2937.2,2936.7,2.37083579]
[1769347834365,0.03501374,2937.2,2936.7,0.21571234]
[1769347834761,0.001,2937.2,2936.7,0.21571234]
[1769347834965,0.03501374,2937.2,2936.7,0.21571234]
[1769347835886,0.001,2937.2,2936.7,0.21571234]
[1769347836182,0.03501374,2937.2,2936.7,0.21571234]
[1769347836593,0.001,2937.2,2936.7,2.37083579]
[1769347836743,0.001,2937.2,2936.8,0.23728358]
[1769347842453,0.03501374,2937.6,2936.9,2.15512345]
[1769347842983,2.19740454,2937.6,2936.7,2.15512345]
[1769347844147,2.19740454,2937.6,2936.9,0.002]
[1769347849989,2.1623908,2937.4,2936.6,0.002]
[1769347850193,2.1623908,2937.2,2936.6,0.002]
[1769347850494,2.19640454,2937.1,2936.6,0.002]
[1769347856596,2.19640454,2937.1,2936.8,0.002]
[1769347858296,2.19640454,2937.1,2936.4,0.002]
[1769347858596,2.19640454,2937.1,2936.2,0.002]
[1769347858597,2.1623908,2937.0,2936.2,0.002]
[1769347858795,2.1623908,2936.8,2936.2,0.002]
[1769347858994,2.1623908,2936.6,2936.2,0.002]
[1769347861101,2.19640454,2936.6,2936.2,0.002]
[1769347865394,2.17393599,2936.4,2936.2,0.002]
[1769347865704,2.20794973,2936.4,2936.2,0.002]
[1769347866002,2.17393599,2936.3,2936.2,0.002]
[1769347866208,2.46603096,2936.3,2936.2,0.002]
[1769347867298,0.29209497,2936.3,2936.2,0.002]
[1769347869199,2.46603096,2936.3,2936.2,0.002]
[1769347870988,0.29209497,2936.3,2936.2,0.002]
[1769347871708,2.46603096,2936.3,2935.8,0.002]
[1769347871893,2.17393599,2936.1,2935.8,0.002]
[1769347872095,0.03401374,2936.0,2935.8,0.002]
[1769347874422,2.05059629,2936.2,2935.8,0.002]
[1769347875495,2.05059629,2936.2,2935.1,3.27817144]
[1769347875696,2.05059629,2936.2,2935.2,2.14746798]
[1769347875697,0.03401374,2936.2,2935.2,2.14746798]
[1769347875898,0.001,2936.4,2935.4,2.14746798]
[1769347876096,0.001,2936.4,2935.6,2.14746798]
[1769347877900,2.01758255,2936.4,2935.6,2.14746798]
[1769347878624,0.001,2936.4,2935.6,2.14746798]
[1769347878801,0.001,2936.4,2935.6,2.36562147]
[1769347881140,0.001,2936.4,2935.7,2.14746798]
[1769347882849,0.03401374,2937.0,2935.9,2.14746798]
[1769347883144,2.01758255,2937.4,2935.9,2.14746798]
[1769347883351,2.05059629,2937.3,2936.1,2.14746798]
[1769347883511,2.05059629,2937.3,2936.2,2.14746798]
[1769347886014,2.05059629,2937.3,2936.0,3.6209274]
[1769347886338,2.05059629,2937.3,2936.3,2.14746798]
[1769347886538,2.05059629,2937.3,2936.3,2.53815056]
[1769347886539,0.20515963,2937.2,2936.3,2.53815056]
[1769347888328,0.20515963,2937.2,2936.4,2.14746798]
[1769347889439,6.32,2937.3,2936.5,2.14746798]
[1769347889619,6.35501374,2937.4,2936.5,2.14746798]
[1769347890230,6.35501374,2937.4,2936.6,0.85132466]
[1769347890550,6.321,2937.4,2936.7,2.14746798]
[1769347890746,6.321,2937.4,2936.8,2.36221478]
[1769347890951,0.001,2937.6,2936.9,1.09533318]
[1769347892413,0.001,2937.6,2937.0,1.11216419]
[1769347894437,0.001,2937.6,2937.0,1.9633603]
[1769347895030,0.001,2937.6,2937.0,1.11216419]
[1769347895219,0.001,2937.6,2937.1,0.19633821]
[1769347895420,0.001,2937.2,2937.1,0.19633821]
[1769347896923,0.001,2937.2,2936.9,0.85121816]
[1769347897449,0.001,2937.2,2936.9,2.01162752]
[1769347897853,0.001,2937.2,2937.1,0.85117973]
[1769347898465,0.001,2937.2,2937.0,0.85118868]
[1769347898666,0.001,2937.2,2937.1,0.85117973]
[1769347898964,0.001,2937.2,2937.0,0.85120871]
[1769347899124,0.001,2937.2,2937.1,1.16812299]
[1769347900038,0.001,2937.2,2937.0,0.85120871]
[1769347900826,0.001,2937.2,2936.9,2.02696929]
[1769347903165,0.001,2937.6,2937.0,1.23214961]
[1769347903457,0.001,2937.6,2937.1,1.412718]
[1769347903625,0.001,2937.6,2937.1,0.20833687]
[1769347905867,0.001,2937.6,2937.1,1.05951154]
[1769347906167,0.001,2937.6,2937.1,0.20833687]
[1769347906465,0.001,2937.6,2937.1,1.0595085]
[1769347906822,0.001,2937.6,2937.2,0.002]
[1769347907257,0.001,2937.4,2937.2,0.002]
[1769347911136,0.001,2937.4,2937.2,0.44883193]
[1769347911336,0.001,2937.4,2937.2,0.002]
[1769347913364,0.001,2937.6,2937.2,0.002]
[1769347913557,0.001,2938.0,2937.2,1.29708198]
[1769347916371,0.001,2938.0,2937.3,0.85112177]
[1769347916670,0.001,2938.0,2937.3,2.12339115]
[1769347916970,0.001,2938.0,2937.4,1.27226938]
[1769347919072,0.001,2938.0,2937.5,0.85106382]
[1769347919271,0.001,2938.0,2937.4,0.8510713]
[1769347919272,0.001,2937.8,2937.4,0.8510713]
[1769347920672,2.1947445,2937.8,2937.2,0.002]
[1769347920974,2.41772032,2937.8,2937.2,0.002]
[1769347922279,2.1947445,2937.8,2937.2,0.002]
[1769347931588,2.1947445,2937.8,2937.4,0.002]
[1769347932863,0.001,2937.8,2937.4,0.002]
[1769347934370,0.001,2937.8,2937.4,0.03604371]
[1769347934556,0.001,2937.8,2937.4,0.8871336]
[1769347934755,0.001,2937.8,2937.4,1.31650677]
[1769347934978,0.001,2937.8,2937.4,0.46541688]
[1769347935181,0.001,2937.8,2937.4,1.31650379]
[1769347935385,0.001,2937.8,2937.4,0.43137317]
[1769347937091,0.001,2937.8,2937.4,1.28246198]
[1769347937292,0.001,2937.8,2937.5,0.3944097]
[1769347939779,2.18458583,2937.8,2937.5,0.3944097]
[1769347939984,2.18458583,2937.8,2937.4,0.002]
[1769347944093,2.18458583,2937.8,2937.2,0.002]
[1769347945091,0.03401374,2937.7,2937.1,0.002]
[1769347945298,2.18358583,2937.6,2937.1,0.002]
[1769347946966,2.18358583,2937.6,2937.0,0.002]
[1769347947174,2.18358583,2937.4,2937.0,0.002]
[1769347951170,2.18358583,2937.4,2936.5,0.85135365]
[1769347952001,2.18358583,2937.4,2936.2,0.85143967]
[1769347952500,2.18358583,2937.4,2936.0,0.002]
[1769347954192,2.34037112,2937.2,2936.0,0.002]
[1769347954413,2.34037112,2937.0,2936.0,0.002]
[1769347957670,2.37438486,2937.0,2936.0,0.002]
[1769347966726,2.37438486,2937.0,2936.0,1.42912223]
[1769347966899,2.34037112,2937.0,2936.0,1.42912223]
[1769347967228,2.34037112,2937.0,2936.2,0.002]
[1769347967407,2.59815208,2937.0,2936.2,0.002]
[1769347968035,2.34037112,2937.5,2936.2,1.43114208]
[1769347968197,2.34037112,2937.3,2936.2,1.43114208]
[1769347968523,4.09290587,2937.7,2936.2,1.43114208]
[1769347968524,2.34037112,2937.1,2936.2,1.43114208]
[1769347969443,2.34037112,2937.1,2936.3,0.85141164]
[1769347972844,0.03401374,2937.6,2936.4,1.47291932]
[1769347972845,2.34037112,2937.5,2936.4,1.47291932]
[1769347973025,2.57780961,2937.4,2936.4,1.47291932]
[1769347974212,2.57780961,2937.4,2936.4,2.29023855]
[1769347975639,2.57780961,2937.4,2936.4,2.28684565]
[1769347976534,2.34037112,2937.4,2936.4,2.28684565]
[1769347976840,2.34037112,2937.4,2936.5,1.47685921]
[1769347978125,2.34037112,2937.4,2936.5,1.44280507]
[1769347978827,2.34037112,2937.4,2936.5,2.29415113]
[1769347979034,2.34037112,2937.4,2936.5,2.29615113]
[1769347979209,2.34037112,2937.4,2936.6,0.22961511]
[1769347979413,6.46729073,2937.7,2936.6,1.67774271]
[1769347979827,0.001,2937.2,2936.6,1.67774271]
[1769347980005,2.34137112,2937.2,2936.6,0.22961511]
[1769347980209,2.34137112,2937.2,2936.5,0.002]
[1769347986754,2.40119514,2937.6,2936.6,1.53631027]
[1769347986942,2.40219514,2937.8,2936.6,1.4614587]
[1769347987128,2.43520888,2937.7,2936.6,1.4614587]
[1769347987813,2.43520888,2937.7,2936.7,0.85129567]
[1769347988009,2.43520888,2937.7,2936.9,1.46302787]
[1769347989027,2.40119514,2937.7,2936.9,1.49707737]
[1769347989220,0.001,2937.8,2936.9,1.49707737]
[1769347989947,0.001,2937.8,2937.0,2.31729518]
[1769347990143,0.001,2937.8,2937.1,0.39813058]
[1769347990344,0.001,2937.8,2937.1,1.86421705]
[1769347991952,0.001,2937.8,2937.2,0.85115075]
[1769347992142,0.001,2937.8,2937.2,2.32026483]
[1769347992627,0.001,2937.5,2937.2,0.85115075]
[1769347993213,0.001,2937.5,2937.3,0.42565229]
[1769347995623,0.001,2937.5,2937.2,0.85115075]
[1769347996063,0.001,2937.5,2937.3,0.85111864]
[1769347997442,0.001,2937.5,2937.2,1.47913585]
[1769347997860,0.001,2937.5,2937.0,1.51318419]
[1769348001052,0.001,2937.5,2937.1,0.85117973]
[1769348001360,0.001,2937.5,2937.1,1.28019645]
[1769348004946,0.001,2937.5,2937.2,0.002]
[1769348005145,0.001,2937.3,2937.2,0.002]
[1769348012844,0.001,2937.8,2937.2,0.03604603]
[1769348013049,0.001,2937.8,2937.2,1.53440331]
[1769348013254,0.001,2937.8,2937.3,0.28145998]
[1769348015774,0.001,2937.8,2937.4,0.88513651]
[1769348015959,0.001,2937.8,2937.4,0.8510928]
[1769348017348,2.21102825,2938.2,2937.4,0.8510928]
[1769348018164,0.001,2937.6,2937.4,0.8510928]
[1769348018483,2.21102825,2938.2,2937.4,0.8510928]
[1769348021084,2.21102825,2938.2,2937.2,0.85315075]
[1769348021587,2.21102825,2938.2,2937.2,2.36271491]
[1769348021879,2.21243285,2938.4,2937.4,0.07485157]
[1769348022086,2.21243285,2938.4,2937.5,2.25660671]
[1769348022282,2.21243285,2938.4,2937.6,0.23314583]
[1769348022478,2.21243285,2938.4,2937.7,0.03404023]
[1769348023157,2.21243285,2938.4,2937.6,0.23314583]
[1769348023380,2.21243285,2938.4,2937.7,0.88504611]
[1769348023966,2.21243285,2938.4,2937.7,0.85100588]
[1769348024290,2.21243285,2938.4,2937.8,0.44881753]
[1769348024456,2.21243285,2938.4,2937.9,0.03403791]
[1769348025080,2.21243285,2938.4,2937.8,0.44881753]
[1769348025686,2.21243285,2938.4,2937.9,0.85094795]
[1769348026766,2.21243285,2938.6,2937.9,0.85094795]
[1769348026963,2.21243285,2938.6,2938.0,0.37496534]
[1769348027161,2.21343285,2938.5,2938.0,0.37496534]
[1769348027692,2.21343285,2938.5,2938.1,0.85089003]
[1769348028090,0.001,2938.5,2938.1,0.85089003]
[1769348030068,0.001,2938.2,2938.1,0.85089003]
[1769348030269,0.001,2938.2,2938.1,1.29970756]
[1769348030869,0.001,2938.5,2938.1,1.29970756]
[1769348031177,0.001,2938.5,2938.1,0.44881753]
[1769348031383,2.21343285,2938.5,2938.1,0.44881753]
[1769348032505,2.21343285,2938.5,2938.1,1.29970527]
[1769348035401,2.21343285,2938.5,2938.2,0.37496534]
[1769348035705,2.21343285,2938.5,2938.1,0.85088774]
[1769348036601,2.21343285,2938.5,2937.7,3.40399512]
[1769348036804,2.21343285,2938.5,2937.7,3.43803535]
[1769348042784,2.21343285,2938.5,2937.9,0.002]
[1769348042977,0.001,2938.3,2937.9,0.03603791]
[1769348043517,0.001,2938.5,2937.9,1.56660907]
[1769348045925,0.001,2938.5,2938.0,0.85091899]
[1769348047421,0.001,2938.7,2938.2,1.53163873]
[1769348047787,0.001,2938.7,2938.1,0.7470356]
[1769348047991,0.001,2938.7,2938.2,0.85086107]
[1769348051331,2.410999,2938.7,2938.1,0.713]
[1769348051689,2.410999,2938.7,2938.1,1.56388398]
[1769348055334,2.410999,2938.7,2938.1,1.56588398]
[1769348055640,0.001,2938.5,2938.1,1.56588398]
[1769348055822,2.31630953,2938.5,2938.1,1.56588398]
[1769348063431,0.001,2938.5,2938.1,1.56588398]
[1769348065011,0.001,2938.7,2938.3,0.85083211]
[1769348065213,0.001,2938.9,2938.4,0.03403212]
[1769348066535,0.001,2939.1,2938.4,1.5783203]
[1769348066719,0.001,2939.1,2938.5,1.79468858]
[1769348067618,0.001,2939.1,2938.6,0.85074525]
[1769348067819,0.001,2939.1,2938.7,0.713]
[1769348068731,0.001,2938.9,2938.7,0.713]
[1769348069734,0.001,2938.9,2938.8,0.85068735]
[1769348071325,0.001,2938.9,2938.8,0.88471484]
[1769348072636,0.001,2939.1,2938.8,0.88471484]
[1769348073016,0.001,2939.1,2938.8,0.85068735]
[1769348073927,2.3982508,2940.2,2938.8,0.85068735]
[1769348074123,2.3982508,2940.0,2938.8,0.85068735]
[1769348074452,2.3982508,2939.8,2938.8,0.85068735]
[1769348078250,2.3982508,2939.8,2938.8,3.16241258]
[1769348078454,2.3982508,2939.8,2938.9,2.27769774]
[1769348079321,2.3982508,2939.8,2938.8,0.85068735]
[1769348079564,2.3982508,2939.8,2938.9,0.713]
[1769348080233,2.3982508,2939.8,2938.9,1.56365532]
[1769348081354,2.3982508,2939.8,2939.0,0.002]
[1769348081564,2.3982508,2939.5,2939.0,0.002]
[1769348088474,0.001,2939.6,2939.0,0.002]
[1769348090983,2.3992508,2939.6,2939.0,0.002]
[1769348100688,0.001,2939.6,2939.0,0.002]
[1769348100887,0.001,2939.6,2939.0,2.27969774]
[1769348102582,0.001,2939.6,2939.1,0.85060052]
[1769348104891,0.001,2939.6,2939.1,3.12964934]
[1769348105298,0.001,2939.4,2939.1,3.12964934]
[1769348105591,0.001,2939.6,2939.1,3.12964934]
[1769348105788,2.51096202,2940.2,2939.2,2.27904882]
[1769348106095,2.51096202,2940.4,2939.2,2.27904882]
[1769348106992,2.51096202,2940.4,2939.3,3.12959146]
[1769348108911,2.51096202,2940.4,2939.4,2.27904882]
[1769348109196,2.51096202,2940.4,2939.5,3.12953359]
[1769348109502,2.51196202,2940.5,2939.6,2.27904882]
[1769348109671,2.54597576,2940.5,2939.6,2.27904882]
[1769348110194,2.51196202,2940.5,2939.6,2.27904882]
[1769348110371,2.51196202,2940.5,2939.7,0.31295336]
[1769348110572,2.51196202,2940.5,2939.7,2.59200218]
[1769348111293,2.51196202,2940.5,2939.8,0.85039798]
[1769348112098,0.001,2940.5,2939.8,0.85039798]
[1769348113305,0.001,2940.5,2939.8,3.1294468]
[1769348113506,0.001,2940.5,2939.9,2.27904882]
[1769348113881,0.001,2940.5,2939.8,0.85039798]
[1769348117223,0.001,2940.5,2939.8,3.35509535]
[1769348117224,0.001,2940.3,2939.8,3.35509535]
[1769348117929,0.001,2940.3,2939.9,2.50469737]
[1769348119093,0.001,2940.3,2939.8,0.85039798]
[1769348121631,0.001,2940.3,2939.8,2.50469737]
[1769348122395,0.001,2940.3,2940.0,2.50469737]
[1769348123836,0.001,2940.3,2940.1,0.85031121]
[1769348124124,0.001,2940.5,2940.1,0.85031121]
[1769348128314,0.002,2940.7,2940.2,2.50469737]
[1769348128513,0.002,2940.7,2940.3,2.50469737]
[1769348128721,0.128,2942.2,2940.2,2.50469737]
[1769348129022,2.36304247,2941.5,2940.5,2.50469737]
[1769348129843,2.36304247,2941.5,2940.6,3.21669737]
[1769348130214,2.36304247,2941.5,2940.7,0.85013772]
[1769348130841,2.36304247,2941.5,2940.6,4.06685889]
[1769348131042,2.36304247,2941.5,2940.6,1.5621549]
[1769348131309,2.36304247,2941.5,2940.6,0.712]
[1769348131512,2.36304247,2941.5,2940.5,0.712]
[1769348131743,2.36304247,2941.5,2940.5,1.56219247]
[1769348131946,2.59954672,2941.5,2940.5,0.712]
[1769348132248,2.59954672,2941.5,2940.5,1.56218864]
[1769348133342,2.36304247,2941.5,2940.5,1.56218864]
[1769348137165,2.36304247,2941.5,2940.5,3.92343661]
[1769348138341,2.36304247,2941.5,2940.6,2.39525463]
[1769348138651,2.50285378,2941.7,2940.8,2.36124797]
[1769348138859,2.50285378,2941.7,2940.7,0.85013772]
[1769348140860,2.50285378,2941.7,2940.7,0.85113772]
[1769348141057,0.002,2941.5,2940.7,0.85113772]
[1769348141359,2.50285378,2941.5,2940.7,0.85113772]
[1769348142357,2.50285378,2941.5,2940.7,3.21238569]
[1769348143459,2.50285378,2941.5,2940.7,3.24639119]
[1769348146763,2.50285378,2941.5,2940.7,3.21238569]
[1769348146942,2.50285378,2941.5,2940.7,0.85113772]
[1769348152745,0.002,2941.3,2940.7,0.85113772]
[1769348152945,0.002,2941.3,2940.7,3.21238569]
[1769348153777,0.002,2941.3,2940.8,2.36124797]
[1769348153943,0.002,2941.3,2940.9,0.32463912]
[1769348155658,0.002,2941.3,2940.9,1.17470385]
[1769348157845,0.002,2941.3,2940.9,1.20846113]
[1769348158045,0.002,2941.3,2940.9,1.17470385]
[1769348160377,0.002,2941.3,2940.9,0.32463912]
[1769348160682,0.002,2941.3,2940.9,1.17471879]
[1769348161380,2.50285378,2941.3,2940.9,0.32463912]
[1769348161555,2.50285378,2941.3,2940.8,0.85010663]
[1769348162792,2.50285378,2941.3,2940.7,0.713]
[1769348163485,2.50285378,2941.3,2940.2,0.85025786]
[1769348163658,2.50285378,2941.3,2940.1,0.85029094]
[1769348163855,2.50285378,2941.3,2939.9,0.712]
[1769348164100,2.3594254,2941.1,2939.9,0.712]
[1769348164591,2.3594254,2941.1,2939.9,1.56236391]
[1769348164804,2.3594254,2941.1,2939.9,4.03108106]
[1769348165013,2.3594254,2941.1,2940.0,2.46871715]
[1769348167010,2.3594254,2941.1,2940.0,3.3190361]
[1769348167190,2.3594254,2940.9,2940.0,3.3190361]
[1769348168292,0.7,2940.7,2940.0,3.3190361]
[1769348168792,2.3594254,2940.9,2940.0,3.3190361]
[1769348169380,2.3594254,2940.9,2939.9,1.56235095]
[1769348169585,2.3594254,2940.9,2939.9,0.712]
[1769348169785,2.3594254,2940.7,2939.9,0.712]
[1769348170095,2.3594254,2940.7,2939.9,1.56236414]
[1769348170514,2.3594254,2941.0,2940.0,2.46871715]
[1769348171418,2.3594254,2941.0,2940.1,0.85031121]
[1769348171605,2.3614254,2941.3,2940.2,2.50272844]
[1769348171813,2.3614254,2941.3,2940.4,2.46871715]
[1769348172520,0.002,2941.3,2940.4,2.46871715]
[1769348172884,2.3614254,2941.3,2940.4,2.46871715]
[1769348174084,2.3614254,2941.3,2940.4,3.31892514]
[1769348176224,0.002,2941.3,2940.5,2.37146771]
[1769348176400,0.002,2941.3,2940.6,0.32216757]
[1769348176801,0.002,2941.3,2940.6,2.69363528]
[1769348177024,0.002,2941.3,2940.7,0.0340055]
[1769348177202,0.002,2941.3,2940.6,2.69363528]
[1769348177817,0.002,2941.3,2940.8,2.37146771]
[1769348178026,0.002,2941.3,2940.9,2.61201503]
[1769348178744,0.002,2941.3,2940.9,3.46209353]
[1769348179631,0.002,2941.3,2940.9,2.61201503]
[1769348180312,0.002,2941.3,2940.9,3.46207532]
[1769348181007,0.002,2941.3,2941.0,2.37146771]
[1769348181208,0.002,2941.3,2941.1,0.34620753]
[1769348182331,0.002,2941.3,2940.7,0.85011626]
[1769348188450,0.002,2941.3,2940.7,3.25558947]
[1769348188652,0.002,2941.3,2940.8,2.37146771]
[1769348190175,0.002,2941.3,2940.7,0.88412176]
[1769348190468,0.002,2941.3,2940.9,0.001]
[1769348190637,0.002,2941.1,2940.9,0.001]
[1769348193761,2.17933854,2941.5,2940.9,0.001]
[1769348201473,2.17933854,2941.5,2940.9,0.33999092]
[1769348202475,2.17933854,2941.5,2941.1,0.001]
[1769348207070,2.35193848,2941.7,2941.1,0.001]
[1769348212696,2.34993848,2941.5,2941.1,0.001]
[1769348215200,2.34993848,2941.5,2941.3,0.001]
[1769348215379,2.35193848,2941.5,2941.3,0.001]
[1769348218687,2.34993848,2941.3,2940.9,0.001]
[1769348219003,2.34993848,2941.3,2940.3,0.85024819]
[1769348219582,2.34993848,2941.3,2940.1,0.85130518]
[1769348219811,2.34993848,2941.3,2940.2,0.85027979]
[1769348220016,2.34993848,2941.1,2940.2,0.85027979]
[1769348220424,2.34993848,2941.1,2940.1,0.85128477]
[1769348221812,2.34993848,2941.1,2940.1,3.39007767]
[1769348222019,0.002,2941.5,2940.4,2.5387929]
[1769348222318,0.002,2941.5,2940.6,2.5387929]
[1769348222522,0.002,2941.5,2940.8,2.5387929]
[1769348227123,0.002,2941.5,2940.8,3.38890067]
[1769348227724,0.002,2941.5,2940.8,2.5387929]
[1769348227927,0.002,2941.5,2941.0,0.001]
[1769348237396,2.38687483,2941.5,2941.0,0.001]
[1769348237593,2.62576231,2941.5,2941.0,0.001]
[1769348238213,2.62576231,2941.5,2940.4,0.85021045]
[1769348239004,2.62576231,2941.5,2940.3,3.40100145]
[1769348239306,2.35086109,2941.2,2940.3,3.40100145]
[1769348240048,0.002,2941.3,2940.4,2.53469853]
[1769348240242,0.002,2941.3,2940.5,2.53469853]
[1769348241160,0.002,2941.3,2940.5,3.38486998]
[1769348241452,0.002,2941.3,2940.5,3.3848935]
[1769348241662,0.03601374,2941.3,2940.5,3.3848935]
[1769348241829,2.38687483,2941.3,2940.5,3.3848935]
[1769348242258,2.35286109,2941.3,2940.5,3.3848935]
[1769348244035,2.35286109,2941.3,2940.6,0.33848935]
[1769348244768,2.38487483,2941.2,2940.4,0.85020978]
[1769348245472,2.35086109,2941.2,2940.5,0.85019356]
[1769348246771,2.35086109,2941.2,2940.4,0.85020281]
[1769348248743,2.35086109,2941.2,2940.4,2.53469853]
[1769348249474,0.002,2941.3,2940.4,2.53469853]
[1769348249769,0.002,2941.3,2940.6,2.53469853]
[1769348251346,0.002,2941.3,2940.7,3.38483625]
[1769348251947,0.002,2941.3,2940.7,2.53469853]
[1769348252778,0.002,2941.1,2940.7,2.53469853]
[1769348254290,0.002,2941.3,2940.8,2.40035062]
[1769348254449,0.002,2941.3,2940.9,2.74456874]
[1769348255381,0.002,2941.3,2940.9,2.72539793]
[1769348255587,0.002,2941.3,2941.0,0.850051]
[1769348257747,0.002,2941.3,2941.1,2.40035062]
[1769348258191,0.002,2941.5,2941.1,2.40035062]
[1769348258349,0.002,2941.5,2941.2,0.32504016]
[1769348258985,0.002,2941.5,2941.2,2.72539078]
[1769348260376,0.002,2941.5,2941.2,3.57538377]
[1769348260992,0.002,2941.5,2941.2,2.72539078]
[1769348261194,0.002,2941.5,2941.2,3.57538198]
[1769348261373,0.002,2941.5,2941.3,0.3575382]
[1769348263499,0.002,2941.5,2941.3,1.20750138]
[1769348263710,2.51149885,2942.2,2941.4,2.40035062]
[1769348263906,0.03601374,2942.5,2941.4,2.40035062]
[1769348264096,2.51149885,2942.4,2941.5,2.76113582]
[1769348264805,2.51149885,2942.4,2941.5,0.3607852]
[1769348266798,2.51149885,2942.2,2941.5,0.3607852]
[1769348272290,2.51149885,2942.0,2941.1,0.001]
[1769348272616,0.03401374,2941.9,2941.1,0.001]
[1769348272938,2.51149885,2941.8,2941.1,0.001]
[1769348277416,2.51149885,2941.8,2941.3,0.001]
[1769348287596,2.60852735,2942.0,2941.3,0.001]
[1769348288324,2.86958008,2942.0,2941.3,0.001]
[1769348290500,2.86958008,2942.0,2941.5,0.001]
[1769348302924,0.002,2941.8,2941.5,0.001]
[1769348307160,2.39808861,2941.8,2941.5,0.001]
[1769348307339,2.39808861,2941.8,2941.3,0.001]
[1769348308467,2.63809747,2941.8,2941.3,0.001]
[1769348313941,2.40728529,2941.6,2941.1,0.001]
[1769348314173,2.44129903,2941.5,2941.1,0.001]
[1769348324571,0.03401374,2941.5,2941.1,0.001]
[1769348324872,0.03401374,2941.6,2941.1,0.001]
[1769348325170,0.2441299,2941.5,2941.1,0.001]
[1769348325372,0.03401374,2941.4,2941.1,0.001]
[1769348327283,0.03401374,2941.4,2941.3,0.001]
[1769348327451,0.03401374,2941.4,2941.1,0.001]
[1769348327654,0.002,2941.3,2941.1,0.001]
[1769348327980,0.27074289,2941.3,2941.1,0.001]
[1769348332857,0.03401374,2941.2,2941.1,0.001]
[1769348334289,0.03401374,2941.2,2940.5,2.49635634]
[1769348334589,2.44129903,2941.2,2940.5,0.001]
[1769348334760,2.67848948,2941.1,2940.5,0.001]
[1769348334961,2.44129903,2941.0,2940.5,0.001]
[1769348335595,0.03401374,2941.0,2940.5,0.001]
[1769348336168,0.03401374,2941.1,2940.5,2.49635634]
[1769348337295,0.03601374,2941.3,2940.5,2.49635634]
[1769348337492,2.44329903,2941.3,2940.5,0.001]
[1769348337675,2.65161519,2941.2,2940.5,0.001]
[1769348337867,0.03401374,2941.1,2940.5,0.001]
[1769348339502,0.03401374,2941.1,2940.7,0.001]
[1769348339993,2.44129903,2941.1,2940.7,0.001]
[1769348340670,0.03401374,2941.1,2940.7,0.001]
[1769348340869,0.03401374,2941.1,2940.7,2.49635634]
[1769348341172,0.03601374,2941.3,2940.7,0.001]
[1769348341396,0.28054364,2941.3,2940.7,0.001]
[1769348343570,0.03601374,2941.3,2940.7,0.001]
[1769348344296,0.03601374,2941.3,2940.7,2.42830183]
[1769348344698,0.002,2941.3,2940.7,2.42830183]
[1769348347199,2.457849,2941.3,2940.7,0.001]
[1769348347495,0.03401374,2941.2,2940.7,0.001]
[1769348351104,0.03401374,2941.2,2940.9,0.001]
[1769348351307,0.28320001,2941.2,2940.9,0.001]
[1769348351482,0.002,2941.1,2940.9,0.001]
[1769348355396,0.002,2941.3,2941.0,2.3578923]
[1769348355609,0.002,2941.5,2941.0,2.3578923]
[1769348355786,0.002,2941.5,2941.1,2.59378153]
[1769348357807,0.002,2941.5,2941.1,0.23588923]
[1769348358120,0.002,2941.5,2940.9,0.001]
[1769348361822,2.28179964,2941.5,2940.9,0.001]
[1769348362112,0.03401374,2941.4,2940.9,0.001]
[1769348364127,0.002,2941.3,2940.9,0.001]
[1769348374032,0.002,2941.3,2940.9,2.25058423]
[1769348374235,0.002,2941.3,2941.0,2.47464265]
[1769348375535,0.002,2941.3,2941.1,0.001]
[1769348377814,0.002,2941.5,2941.1,0.001]
[1769348378026,0.002,2941.5,2941.1,2.25058423]
[1769348379123,0.002,2941.5,2941.1,0.001]
[1769348379324,0.22481719,2941.5,2941.1,0.001]
[1769348382544,0.002,2941.5,2941.1,0.001]
[1769348387454,2.26218561,2941.5,2941.1,0.001]
[1769348388038,2.26218561,2941.5,2941.2,0.001]
[1769348388440,0.002,2941.3,2941.2,0.001]
[1769348389754,2.22817187,2941.3,2941.2,0.001]
[1769348392055,2.45118906,2941.3,2941.1,0.001]
[1769348394364,0.22501719,2941.3,2941.1,0.001]
[1769348395830,0.03401374,2941.2,2940.7,0.001]
[1769348396166,0.22501719,2941.3,2940.7,0.001]
[1769348396330,0.002,2941.3,2940.7,0.001]
[1769348397065,0.002,2941.3,2940.7,2.25058423]
[1769348400559,0.002,2941.3,2940.9,0.001]
[1769348412162,0.002,2941.1,2940.9,0.001]
[1769348419987,0.002,2941.1,2940.9,2.11706764]
[1769348427584,0.002,2941.1,2940.9,2.3288744]
[1769348428970,0.002,2941.3,2941.0,2.11606764]
[1769348429282,0.002,2941.5,2941.0,2.11606764]
[1769348430081,0.002,2941.5,2941.1,2.11606764]
[1769348433297,0.002,2941.5,2941.1,2.9660867]
[1769348433454,0.002,2941.5,2941.2,2.43062077]
[1769348435202,0.002,2941.3,2941.2,2.43062077]
[1769348438559,0.002,2941.3,2941.2,3.28061397]
[1769348439775,0.002,2941.3,2941.2,2.43062077]
[1769348440288,0.002,2941.3,2941.2,3.28061397]
[1769348441893,0.002,2941.8,2941.3,2.1340121]
[1769348442065,0.002,2941.8,2941.4,2.4620735]
[1769348443098,0.002,2941.8,2941.5,0.03399626]
[1769348443281,0.002,2941.8,2941.4,2.4620735]
[1769348443995,0.002,2941.8,2941.5,0.03399626]
[1769348444291,0.002,2941.8,2941.4,2.4620735]
[1769348444475,0.002,2941.8,2941.5,0.3312017]
[1769348446789,0.002,2941.8,2941.3,0.84994394]
[1769348447191,0.002,2941.6,2941.3,0.84994394]
[1769348448108,0.002,2941.6,2941.3,2.98395604]